[Event "MČR mládeže v rapid šachu 2024 H10"]
[Site "Harrachov, Czech Republic"]
[Date "????.??.??"]
[Round "9.8"]
[White "Hlavacek Pavel"]
[Black "Stepnicka Filip"]
[Result "1/2-1/2"]
[TimeControl "20+5"]
[WhiteFideId "23761768"]
[BlackFideId "23771542"]
[WhiteElo "1641"]
[BlackElo "1531"]

1. d4 {[%clk 00:20:08]} {[%emt 00:00:01]} d5 {[%clk 00:20:09]} {[%emt
00:00:02]} 2. c4 {[%clk 00:20:12]} {[%emt 00:00:02]} e6 {[%clk 00:20:12]} 3.
Nc3 {[%clk 00:20:16]} {[%emt 00:00:02]} Nf6 {[%clk 00:20:15]} {[%emt 00:00:04]}
4. Bg5 {[%clk 00:20:19]} Be7 {[%clk 00:20:12]} {[%emt 00:00:07]} 5. Nf3 {[%clk
00:20:23]} {[%emt 00:00:02]} O-O {[%clk 00:19:48]} {[%emt 00:00:28]} 6. e3
{[%clk 00:20:27]} {[%emt 00:00:03]} c6 {[%clk 00:19:13]} {[%emt 00:00:39]} 7.
cxd5 {[%clk 00:20:29]} {[%emt 00:00:03]} cxd5 {[%clk 00:19:14]} {[%emt
00:00:04]} 8. Bd3 {[%clk 00:20:33]} {[%emt 00:00:01]} Nc6 {[%clk 00:18:58]}
{[%emt 00:00:21]} 9. a3 {[%clk 00:20:31]} {[%emt 00:00:08]} Qb6 {[%clk
00:18:43]} {[%emt 00:00:20]} 10. Qc2 {[%clk 00:20:21]} {[%emt 00:00:15]} h6
{[%clk 00:18:41]} {[%emt 00:00:06]} 11. Bh4 {[%clk 00:20:18]} {[%emt 00:00:09]}
Bd7 {[%clk 00:18:22]} {[%emt 00:00:25]} 12. O-O {[%clk 00:20:09]} {[%emt
00:00:13]} Rac8 {[%clk 00:18:07]} {[%emt 00:00:19]} 13. Qe2 {[%clk 00:19:54]}
{[%emt 00:00:20]} Rfd8 {[%clk 00:17:59]} {[%emt 00:00:13]} 14. Rac1 {[%clk
00:19:40]} {[%emt 00:00:20]} a6 {[%clk 00:16:51]} {[%emt 00:01:13]} 15. Na4
{[%clk 00:18:04]} {[%emt 00:01:40]} Qa5 {[%clk 00:15:27]} {[%emt 00:01:30]} 16.
Nc5 {[%clk 00:17:36]} {[%emt 00:00:33]} Qb6 {[%clk 00:14:57]} {[%emt 00:00:35]}
17. b4 {[%clk 00:17:14]} {[%emt 00:00:28]} Kh8 {[%clk 00:13:52]} {[%emt
00:01:09]} 18. Nxd7 {[%clk 00:16:58]} {[%emt 00:00:21]} Rxd7 {[%clk 00:13:53]}
{[%emt 00:00:05]} 19. Ne5 {[%clk 00:17:00]} {[%emt 00:00:03]} Rdc7 {[%clk
00:13:29]} {[%emt 00:00:28]} 20. Nxc6 {[%clk 00:11:35]} {[%emt 00:05:31]} Rxc6
{[%clk 00:13:21]} {[%emt 00:00:13]} 21. Rc2 {[%clk 00:10:40]} {[%emt 00:00:55]}
Qc7 {[%clk 00:12:52]} {[%emt 00:00:38]} 22. Rfc1 {[%clk 00:10:21]} {[%emt
00:00:21]} Rxc2 {[%clk 00:12:29]} {[%emt 00:00:32]} 23. Rxc2 {[%clk 00:10:23]}
{[%emt 00:00:03]} Qd7 {[%clk 00:12:22]} {[%emt 00:00:12]} 24. Rxc8+ {[%clk
00:10:00]} {[%emt 00:00:29]} Qxc8 {[%clk 00:12:24]} {[%emt 00:00:03]} 25. Qc2
{[%clk 00:10:03]} Qxc2 {[%clk 00:12:15]} {[%emt 00:00:14]} 26. Bxc2 {[%clk
00:10:06]} {[%emt 00:00:02]} g5 {[%clk 00:12:14]} {[%emt 00:00:05]} 27. Bg3
{[%clk 00:10:08]} {[%emt 00:00:03]} Kg8 {[%clk 00:11:46]} {[%emt 00:00:33]} 28.
Kf1 {[%clk 00:09:57]} {[%emt 00:00:16]} b5 {[%clk 00:11:40]} {[%emt 00:00:11]}
29. Ke2 {[%clk 00:09:40]} {[%emt 00:00:21]} Kf8 {[%clk 00:11:27]} {[%emt
00:00:19]} 30. f3 {[%clk 00:08:32]} {[%emt 00:01:14]} Ke8 {[%clk 00:11:13]}
{[%emt 00:00:19]} 31. Kd3 {[%clk 00:07:41]} {[%emt 00:00:55]} Kd7 {[%clk
00:11:11]} {[%emt 00:00:08]} 32. Kc3 {[%clk 00:07:35]} {[%emt 00:00:11]} Kc6
{[%clk 00:10:49]} {[%emt 00:00:27]} 33. e4 {[%clk 00:07:05]} {[%emt 00:00:35]}
Kb6 {[%clk 00:10:22]} {[%emt 00:00:32]} 34. Be5 {[%clk 00:05:15]} {[%emt
00:01:53]} Kc6 {[%clk 00:09:56]} {[%emt 00:00:32]} 35. Bxf6 {[%clk 00:05:14]}
{[%emt 00:00:06]} Bxf6 {[%clk 00:10:00]} {[%emt 00:00:01]} 36. e5 {[%emt
00:00:04]} Be7 {[%clk 00:10:01]} 37. Bh7 {[%clk 00:05:12]} {[%emt 00:00:11]}
Kd7 {[%emt 00:00:43]} 38. Bg8 Ke8 39. Kb3 {[%emt 00:00:05]} Kf8 {[%emt
00:00:13]} 40. a4 Kg7 {[%emt 00:00:01]} 41. Bh7 1/2-1/2



[ePGN "0.1;DGT LiveChess/2.2.6"]